fUSD/lending_fUSD_20241110
["ID","MTS","AMOUNT","RATE_DAILY","PERIOD"]
[341893045,1731271849973,-500.0,0.0001499,2]
[341893046,1731271849983,-500.0,0.0001499,2]
[341893047,1731271849992,-916.25,0.0001499,2]
[341893048,1731271850001,-500.0,0.0001499,2]
[341893049,1731271850010,-916.25,0.0001499,2]
[341893050,1731271850020,-916.25,0.0001499,2]
[341893051,1731271850029,-500.0,0.0001499,2]
[341893052,1731271850038,-500.0,0.0001499,2]
[341893053,1731271850047,-500.0,0.0001499,2]
[341893054,1731271850056,-500.0,0.0001499,2]
[341893055,1731271850066,-615.74900805,0.0001499,2]
[341893056,1731271850075,-330.67135653,0.0001499,2]
[341893057,1731271850084,-500.0,0.0001499,2]
[341893058,1731271850094,-500.0,0.0001499,2]
[341893059,1731271850103,-500.0,0.0001499,2]
[341893060,1731271850113,-2702.64,0.0001499,2]
[341893061,1731271850122,-480.78326084,0.0001499,2]
[341893062,1731271850131,-816.89,0.0001499,2]
[341893063,1731271850140,-816.89,0.0001499,2]
[341893064,1731271850149,-816.89,0.0001499,2]
[341893065,1731271850158,-816.89,0.0001499,2]
[341893066,1731271850168,-1389.87,0.0001499,2]
[341893067,1731271850177,-1389.87,0.0001499,2]
[341893068,1731271850186,-816.89,0.0001499,2]
[341893069,1731271850195,-500.0,0.0001499,2]
[341893070,1731271850205,-816.89,0.0001499,2]
[341893071,1731271850214,-500.0,0.0001499,2]
[341893072,1731271850224,-500.0,0.0001499,2]
[341893073,1731271850233,-500.0,0.0001499,2]
[341893074,1731271850242,-500.0,0.0001499,2]
[341893075,1731271850252,-500.0,0.0001499,2]
[341893076,1731271850261,-500.0,0.0001499,2]
[341893077,1731271850273,-500.0,0.0001499,2]
[341893078,1731271850282,-500.0,0.0001499,2]
[341893079,1731271850291,-5891.4,0.0001499,2]
[341893080,1731271850300,-5891.4,0.0001499,2]
[341893081,1731271850310,-500.0,0.0001499,2]
[341893082,1731271850319,-500.0,0.0001499,2]
[341893083,1731271850328,-500.0,0.0001499,2]
[341893084,1731271850338,-500.0,0.0001499,2]
[341893085,1731271850347,-500.0,0.0001499,2]
[341893086,1731271850356,-500.0,0.0001499,2]
[341893087,1731271850366,-500.0,0.0001499,2]
[341893088,1731271850376,-500.0,0.0001499,2]
[341893089,1731271850385,-670.64,0.0001499,2]
[341893090,1731271850396,-670.64,0.0001499,2]
[341893091,1731271850405,-530.82822298,0.0001499,2]
[341893092,1731271850414,-670.64,0.0001499,2]
[341893093,1731271850423,-1094.1,0.0001499,2]
[341893094,1731271850433,-1094.1,0.0001499,2]
[341893095,1731271850442,-1094.1,0.0001499,2]
[341893096,1731271850451,-1094.1,0.0001499,2]
[341893097,1731271850460,-1094.1,0.0001499,2]
[341893098,1731271850470,-7297.55,0.0001499,2]
[341893099,1731271850479,-1094.1,0.0001499,2]
[341893100,1731271850488,-7297.55,0.0001499,2]
[341893101,1731271850498,-1094.1,0.0001499,2]
[341893102,1731271850507,-1094.1,0.0001499,2]
[341893103,1731271850519,-575.17,0.0001499,2]
[341893104,1731271850528,-1094.1,0.0001499,2]
[341893105,1731271850538,-575.17,0.0001499,2]
[341893106,1731271850547,-1094.1,0.0001499,2]
[341893107,1731271850557,-575.17,0.0001499,2]
[341893108,1731271850565,-575.17,0.0001499,2]
[341893109,1731271850575,-575.17,0.0001499,2]
[341893110,1731271850584,-575.17,0.0001499,2]
[341893111,1731271850594,-575.17,0.0001499,2]
[341893112,1731271850603,-575.17,0.0001499,2]
[341893113,1731271850613,-575.17,0.0001499,2]
[341893114,1731271850623,-575.17,0.0001499,2]
[341893115,1731271850632,-1440.01,0.0001499,2]
[341893116,1731271850642,-1440.01,0.0001499,2]
[341893117,1731271850654,-1440.01,0.0001499,2]
[341893118,1731271850663,-3077.67,0.0001499,2]
[341893119,1731271850673,-3077.67,0.0001499,2]
[341893120,1731271850682,-3077.67,0.0001499,2]
[341893121,1731271850691,-545.65,0.0001499,2]
[341893122,1731271850700,-545.65,0.0001499,2]
[341893123,1731271850710,-545.65,0.0001499,2]
[341893124,1731271850719,-1128.6,0.0001499,2]
[341893125,1731271850729,-5315.96,0.0001499,2]
[341893126,1731271850739,-5315.96,0.0001499,2]
[341893127,1731271850748,-5315.96,0.0001499,2]
[341893128,1731271850758,-5315.96,0.0001499,2]
[341893129,1731271850768,-545.65,0.0001499,2]
[341893130,1731271850780,-5315.96,0.0001499,2]
[341893131,1731271850790,-5315.96,0.0001499,2]
[341893132,1731271850799,-5315.96,0.0001499,2]
[341893133,1731271850809,-5315.96,0.0001499,2]
[341893134,1731271850818,-5315.96,0.0001499,2]
[341893135,1731271850828,-5315.96,0.0001499,2]
[341893136,1731271850837,-3100.77,0.0001499,2]
[341893137,1731271850847,-3100.77,0.0001499,2]
[341893138,1731271850857,-3100.77,0.0001499,2]
[341893139,1731271850866,-3100.77,0.0001499,2]
[341893140,1731271850876,-3100.77,0.0001499,2]
[341893141,1731271850885,-3100.77,0.0001499,2]
[341893142,1731271850895,-500.0,0.0001499,2]
[341893143,1731271850904,-500.0,0.0001499,2]
[341893144,1731271850914,-500.0,0.0001499,2]
[341893145,1731271850923,-500.0,0.0001499,2]
[341893146,1731271850932,-500.0,0.0001499,2]
[341893147,1731271850941,-500.0,0.0001499,2]
[341893148,1731271850951,-500.0,0.0001499,2]
[341893149,1731271850960,-2804.65,0.0001499,2]
[341893150,1731271850970,-500.0,0.0001499,2]
[341893151,1731271850979,-2804.65,0.0001499,2]
[341893152,1731271850988,-500.0,0.0001499,2]
[341893153,1731271850998,-2804.65,0.0001499,2]
[341893154,1731271851008,-500.0,0.0001499,2]
[341893155,1731271851020,-500.0,0.0001499,2]
[341893156,1731271851030,-1379.69356778,0.0001499,2]
[341893157,1731271851146,-690.34200092,0.0001499,2]
[341893158,1731271851159,-883.5,0.0001499,2]
[341893159,1731271851170,-971.5544313,0.0001499,2]
[341893160,1731271851179,-160.9455687,0.0001499,2]
[341893161,1731271851207,-1509.64259488,0.0001499,2]
[341893162,1731271851244,-509.35311082,0.0001499,2]
[341893163,1731271851359,-1745.1487256,0.0001499,2]
[341893164,1731271851368,-440.80607525,0.0001499,2]
[341893165,1731271851379,-59.19392475,0.0001499,2]
[341893166,1731271851389,-213.06441498,0.0001499,2]
[341893167,1731271851407,-286.93558502,0.0001499,2]
[341893168,1731271851416,-500.0,0.0001499,2]
[341893169,1731271851425,-1234.77,0.0001499,2]
[341893170,1731271851433,-479.07757889,0.0001499,2]
[341893171,1731271851442,-500.0,0.0001499,2]
[341893172,1731271851452,-1234.77,0.0001499,2]
[341893173,1731271851461,-1234.77,0.0001499,2]
[341893174,1731271851470,-1234.77,0.0001499,2]
[341893175,1731271851479,-1234.77,0.0001499,2]
[341893176,1731271851488,-1234.77,0.0001499,2]
[341893177,1731271851497,-2455.59,0.0001499,2]
[341893178,1731271851506,-500.0,0.0001499,2]
[341893179,1731271851519,-1234.77,0.0001499,2]
[341893180,1731271851527,-2455.59,0.0001499,2]
[341893181,1731271851537,-29.31683609,0.0001499,2]
[341893182,1731271851550,-1205.45316391,0.0001499,2]
[341893183,1731271851559,-789.77312663,0.0001499,2]
[341893184,1731271851575,-513.18500005,0.0001499,2]
[341893185,1731271851585,-1152.63187332,0.0001499,2]
[341893186,1731271851594,-851.08640904,0.0001499,2]
[341893187,1731271851606,-383.68359096,0.0001499,2]
[341893188,1731271851615,-1120.3263383,0.0001499,2]
[341893189,1731271851626,-1335.2636617,0.0001499,2]
[341893190,1731271851635,-1234.77,0.0001499,2]
[341893191,1731271851644,-2455.59,0.0001499,2]
[341893192,1731271851655,-2455.59,0.0001499,2]
[341893193,1731271851665,-500.0,0.0001499,2]
[341893194,1731271851674,-39.55438732,0.0001499,2]
[341893195,1731271851856,-995.99,0.00014988,2]
[341893196,1731271851865,-3457.56561268,0.0001499,2]
[341893197,1731271851874,-500.0,0.0001499,2]
[341893198,1731271851884,-3497.12,0.0001499,2]
[341893199,1731271851894,-1479.29,0.0001499,2]
[341893200,1731271851903,-3497.12,0.0001499,2]
[341893201,1731271851912,-1479.29,0.0001499,2]
[341893202,1731271851921,-500.0,0.0001499,2]
[341893203,1731271851930,-1479.29,0.0001499,2]
[341893204,1731271851939,-500.0,0.0001499,2]
[341893205,1731271851949,-1479.29,0.0001499,2]
[341893206,1731271851958,-1479.29,0.0001499,2]
[341893207,1731271851967,-500.0,0.0001499,2]
[341893208,1731271851976,-500.0,0.0001499,2]
[341893209,1731271851985,-500.0,0.0001499,2]
[341893210,1731271851995,-500.0,0.0001499,2]
[341893211,1731271852004,-500.0,0.0001499,2]
[341893212,1731271852013,-500.0,0.0001499,2]
[341893213,1731271852023,-500.0,0.0001499,2]
[341893214,1731271852033,-500.0,0.0001499,2]
[341893215,1731271852042,-500.0,0.0001499,2]
[341893216,1731271852051,-500.0,0.0001499,2]
[341893217,1731271852060,-500.0,0.0001499,2]
[341893218,1731271852070,-500.0,0.0001499,2]
[341893219,1731271852079,-667.74,0.0001499,2]
[341893220,1731271852088,-500.0,0.0001499,2]
[341893221,1731271852097,-667.74,0.0001499,2]
[341893222,1731271852106,-500.0,0.0001499,2]
[341893223,1731271852115,-667.74,0.0001499,2]
[341893224,1731271852125,-500.0,0.0001499,2]
[341893225,1731271852134,-500.0,0.0001499,2]
[341893226,1731271852143,-667.74,0.0001499,2]
[341893227,1731271852152,-2059.55,0.0001499,2]
[341893228,1731271852161,-500.0,0.0001499,2]
[341893229,1731271852170,-667.74,0.0001499,2]
[341893230,1731271852179,-2059.55,0.0001499,2]
[341893231,1731271852188,-667.74,0.0001499,2]
[341893232,1731271852197,-2059.55,0.0001499,2]
[341893233,1731271852206,-667.74,0.0001499,2]
[341893234,1731271852215,-2059.55,0.0001499,2]
[341893235,1731271852224,-667.74,0.0001499,2]
[341893236,1731271852234,-500.0,0.0001499,2]
[341893237,1731271852243,-667.74,0.0001499,2]
[341893238,1731271852252,-2059.55,0.0001499,2]
[341893239,1731271852262,-667.74,0.0001499,2]
[341893240,1731271852273,-2059.55,0.0001499,2]
[341893241,1731271852283,-3575.41,0.0001499,2]
[341893242,1731271852292,-500.0,0.0001499,2]
[341893243,1731271852301,-3575.41,0.0001499,2]
[341893244,1731271852311,-500.0,0.0001499,2]
[341893245,1731271852320,-3575.41,0.0001499,2]
[341893246,1731271852329,-500.0,0.0001499,2]
[341893247,1731271852338,-3575.41,0.0001499,2]
[341893248,1731271852348,-500.0,0.0001499,2]
[341893249,1731271852357,-3575.41,0.0001499,2]
[341893250,1731271852367,-4659.68,0.0001499,2]
[341893251,1731271852378,-500.0,0.0001499,2]
[341893252,1731271852387,-892.82,0.0001499,2]
[341893253,1731271852397,-4659.68,0.0001499,2]
[341893254,1731271852406,-892.82,0.0001499,2]
[341893255,1731271852414,-500.0,0.0001499,2]
[341893256,1731271852424,-892.82,0.0001499,2]
[341893257,1731271852433,-500.0,0.0001499,2]
[341893258,1731271852442,-4659.68,0.0001499,2]
[341893259,1731271852452,-500.0,0.0001499,2]
[341893260,1731271852461,-892.82,0.0001499,2]
[341893261,1731271852470,-4659.68,0.0001499,2]
[341893262,1731271852479,-500.0,0.0001499,2]
[341893263,1731271852488,-892.82,0.0001499,2]
[341893264,1731271852497,-4659.68,0.0001499,2]
[341893265,1731271852507,-500.0,0.0001499,2]
[341893266,1731271852517,-892.82,0.0001499,2]
[341893267,1731271852526,-500.0,0.0001499,2]
[341893268,1731271852535,-4659.68,0.0001499,2]
[341893269,1731271852545,-500.0,0.0001499,2]
[341893270,1731271852554,-4659.68,0.0001499,2]
[341893271,1731271852563,-892.82,0.0001499,2]
[341893272,1731271852573,-500.0,0.0001499,2]
[341893273,1731271852582,-4659.68,0.0001499,2]
[341893274,1731271852592,-892.82,0.0001499,2]
[341893275,1731271852601,-4659.68,0.0001499,2]
[341893276,1731271852610,-892.82,0.0001499,2]
[341893277,1731271852619,-4659.68,0.0001499,2]
[341893278,1731271852629,-892.82,0.0001499,2]
[341893279,1731271852638,-500.0,0.0001499,2]
[341893280,1731271852648,-500.0,0.0001499,2]
[341893281,1731271852661,-500.0,0.0001499,2]
[341893282,1731271852671,-500.0,0.0001499,2]
[341893283,1731271852680,-500.0,0.0001499,2]
[341893284,1731271852689,-500.0,0.0001499,2]
[341893285,1731271852699,-500.0,0.0001499,2]
[341893286,1731271852708,-500.0,0.0001499,2]
[341893287,1731271852717,-500.0,0.0001499,2]
[341893288,1731271852727,-500.0,0.0001499,2]
[341893289,1731271852736,-500.0,0.0001499,2]
[341893290,1731271852746,-500.0,0.0001499,2]
[341893291,1731271852755,-500.0,0.0001499,2]
[341893292,1731271852767,-500.0,0.0001499,2]
[341893293,1731271852776,-500.0,0.0001499,2]
[341893294,1731271852785,-500.0,0.0001499,2]
[341893295,1731271852795,-185.04,0.0001499,2]
[341893296,1731271852805,-500.0,0.0001499,2]
[341893297,1731271852814,-500.0,0.0001499,2]
[341893298,1731271852823,-556.71,0.0001499,2]
[341893299,1731271852833,-500.0,0.0001499,2]
[341893300,1731271852842,-500.0,0.0001499,2]
[341893301,1731271852852,-556.71,0.0001499,2]
[341893302,1731271852861,-500.0,0.0001499,2]
[341893303,1731271852871,-500.0,0.0001499,2]
[341893304,1731271852880,-500.0,0.0001499,2]
[341893305,1731271852888,-556.71,0.0001499,2]
[341893306,1731271852898,-500.0,0.0001499,2]
[341893307,1731271852907,-500.0,0.0001499,2]
[341893308,1731271852917,-166.54033886,0.0001499,2]
[341893309,1731271852926,-500.0,0.0001499,2]
[341893310,1731271852935,-500.0,0.0001499,2]
[341893311,1731271852945,-500.0,0.0001499,2]
[341893312,1731271852954,-517.40736663,0.0001499,2]
[341893313,1731271852964,-4150.98,0.0001499,2]
[341893314,1731271852973,-4150.98,0.0001499,2]
[341893315,1731271852982,-500.0,0.0001499,2]
[341893316,1731271852992,-4150.98,0.0001499,2]
[341893317,1731271853001,-500.0,0.0001499,2]
[341893318,1731271853010,-4150.98,0.0001499,2]
[341893319,1731271853020,-500.0,0.0001499,2]
[341893320,1731271853029,-4150.98,0.0001499,2]
[341893321,1731271853039,-500.0,0.0001499,2]
[341893322,1731271853048,-500.0,0.0001499,2]
[341893323,1731271853057,-500.0,0.0001499,2]
[341893324,1731271853068,-500.0,0.0001499,2]
[341893325,1731271853077,-74.60075148,0.0001499,2]
[341893326,1731271853097,-790.51924852,0.0001499,2]
[341893327,1731271853106,-500.0,0.0001499,2]
[341893328,1731271853115,-865.12,0.0001499,2]
[341893329,1731271853124,-616.71676307,0.0001499,2]
[341893330,1731271853133,-865.12,0.0001499,2]
[341893331,1731271853143,-500.0,0.0001499,2]
[341893332,1731271853152,-865.12,0.0001499,2]
[341893333,1731271853162,-865.12,0.0001499,2]
[341893334,1731271853171,-500.0,0.0001499,2]
[341893335,1731271853180,-975.73,0.0001499,2]
[341893336,1731271853190,-865.12,0.0001499,2]
[341893337,1731271853200,-500.0,0.0001499,2]
[341893338,1731271853209,-975.73,0.0001499,2]
[341893339,1731271853219,-500.0,0.0001499,2]
[341893340,1731271853228,-865.12,0.0001499,2]
[341893341,1731271853237,-975.73,0.0001499,2]
[341893342,1731271853247,-631.03460472,0.0001499,2]
[341893343,1731271853255,-865.12,0.0001499,2]
[341893344,1731271853266,-865.12,0.0001499,2]
[341893345,1731271853275,-975.73,0.0001499,2]
[341893346,1731271853285,-865.12,0.0001499,2]
[341893347,1731271853294,-975.73,0.0001499,2]
[341893348,1731271853303,-975.73,0.0001499,2]
[341893349,1731271853312,-975.73,0.0001499,2]
[341893350,1731271853321,-975.73,0.0001499,2]
[341893351,1731271853330,-975.73,0.0001499,2]
[341893352,1731271853340,-975.73,0.0001499,2]
[341893353,1731271853349,-500.0,0.0001499,2]
[341893354,1731271853358,-500.0,0.0001499,2]
[341893355,1731271853367,-500.0,0.0001499,2]
[341893356,1731271853376,-578.49365896,0.0001499,2]
[341893357,1731271853386,-500.0,0.0001499,2]
[341893358,1731271853395,-500.0,0.0001499,2]
[341893359,1731271853405,-503.42224984,0.0001499,2]
[341893360,1731271853414,-500.0,0.0001499,2]
[341893361,1731271853424,-500.0,0.0001499,2]
[341893362,1731271853433,-569.24549398,0.0001499,2]
[341893363,1731271853442,-1230.36,0.0001499,2]
[341893364,1731271853452,-1230.36,0.0001499,2]
[341893365,1731271853461,-1230.36,0.0001499,2]
[341893366,1731271853471,-1230.36,0.0001499,2]
[341893367,1731271853481,-1230.36,0.0001499,2]
[341893368,1731271853491,-1230.36,0.0001499,2]
[341893369,1731271853501,-1230.36,0.0001499,2]
[341893370,1731271853510,-1230.36,0.0001499,2]
[341893371,1731271853522,-1230.36,0.0001499,2]
[341893372,1731271853531,-1230.36,0.0001499,2]
[341893373,1731271853541,-500.0,0.0001499,2]
[341893374,1731271853550,-500.0,0.0001499,2]
[341893375,1731271853560,-500.0,0.0001499,2]
[341893376,1731271853571,-500.0,0.0001499,2]
[341893377,1731271853580,-500.0,0.0001499,2]
[341893378,1731271853590,-500.0,0.0001499,2]
[341893379,1731271853599,-500.0,0.0001499,2]
[341893380,1731271853609,-500.0,0.0001499,2]
[341893381,1731271853618,-434.88313415,0.0001499,2]
[341893382,1731271853628,-500.0,0.0001499,2]
[341893383,1731271853638,-151.0,0.0001499,2]
[341893384,1731271853647,-500.0,0.0001499,2]
[341893385,1731271853661,-500.0,0.0001499,2]
[341893386,1731271853671,-500.0,0.0001499,2]
[341893387,1731271853683,-2406.45,0.0001499,2]
[341893388,1731271853693,-500.0,0.0001499,2]
[341893389,1731271853703,-2406.45,0.0001499,2]
[341893390,1731271853713,-269.61733072,0.0001499,2]
[341893391,1731271853723,-2406.45,0.0001499,2]
[341893392,1731271853735,-2406.45,0.0001499,2]
[341893393,1731271853745,-2406.45,0.0001499,2]
[341893394,1731271853755,-2406.45,0.0001499,2]
[341893395,1731271853764,-4409.41,0.0001499,2]
[341893396,1731271853774,-1506.41,0.0001499,2]
[341893397,1731271853784,-2350.39896959,0.0001499,2]
[341893398,1731271853829,-56.05103041,0.0001499,2]
[341893399,1731271853839,-4409.41,0.0001499,2]
[341893400,1731271853849,-1506.41,0.0001499,2]
[341893401,1731271853859,-2406.45,0.0001499,2]
[341893402,1731271853869,-4409.41,0.0001499,2]
[341893403,1731271853878,-1506.41,0.0001499,2]
[341893404,1731271853888,-2406.45,0.0001499,2]
[341893405,1731271853898,-4409.41,0.0001499,2]
[341893406,1731271853907,-1506.41,0.0001499,2]
[341893407,1731271853917,-500.0,0.0001499,2]
[341893408,1731271853927,-2406.45,0.0001499,2]
[341893409,1731271853937,-4409.41,0.0001499,2]
[341893410,1731271853947,-1506.41,0.0001499,2]
[341893411,1731271853957,-1506.41,0.0001499,2]
[341893412,1731271853966,-2406.45,0.0001499,2]
[341893413,1731271853976,-1506.41,0.0001499,2]
[341893414,1731271853985,-500.0,0.0001499,2]
[341893415,1731271853995,-2406.45,0.0001499,2]
[341893416,1731271854004,-1506.41,0.0001499,2]
[341893417,1731271854014,-2406.45,0.0001499,2]
[341893418,1731271854026,-500.0,0.0001499,2]
[341893419,1731271854035,-1506.41,0.0001499,2]
[341893420,1731271854044,-2406.45,0.0001499,2]
[341893421,1731271854053,-500.0,0.0001499,2]
[341893422,1731271854063,-500.0,0.0001499,2]
[341893423,1731271854072,-1506.41,0.0001499,2]
[341893424,1731271854081,-2406.45,0.0001499,2]
[341893425,1731271854090,-500.0,0.0001499,2]
[341893426,1731271854100,-2406.45,0.0001499,2]
[341893427,1731271854109,-500.0,0.0001499,2]
[341893428,1731271854119,-500.0,0.0001499,2]
[341893429,1731271854128,-2406.61659498,0.0001499,2]
[341893430,1731271854138,-500.0,0.0001499,2]
[341893431,1731271854147,-500.0,0.0001499,2]
[341893432,1731271854156,-500.0,0.0001499,2]
[341893433,1731271854166,-500.0,0.0001499,2]
[341893434,1731271854175,-208.58793465,0.0001499,2]
[341893435,1731271854185,-500.0,0.0001499,2]
[341893436,1731271854194,-500.0,0.0001499,2]
[341893437,1731271854204,-500.0,0.0001499,2]
[341893438,1731271854213,-500.0,0.0001499,2]
[341893439,1731271854223,-500.0,0.0001499,2]
[341893440,1731271854233,-500.0,0.0001499,2]
[341893441,1731271854243,-500.0,0.0001499,2]
[341893442,1731271854253,-500.0,0.0001499,2]
[341893443,1731271854263,-500.0,0.0001499,2]
[341893444,1731271854275,-500.0,0.0001499,2]
[341893445,1731271854285,-500.0,0.0001499,2]
[341893446,1731271854294,-370.89013548,0.0001499,2]
[341893447,1731271854304,-500.0,0.0001499,2]
[341893448,1731271854314,-500.0,0.0001499,2]
[341893449,1731271854323,-752.31,0.0001499,2]
[341893450,1731271854333,-752.31,0.0001499,2]
[341893451,1731271854342,-752.31,0.0001499,2]
[341893452,1731271854351,-2053.94,0.0001499,2]
[341893453,1731271854361,-2053.94,0.0001499,2]
[341893454,1731271854370,-2053.94,0.0001499,2]
[341893455,1731271854380,-2053.94,0.0001499,2]
[341893456,1731271854390,-2053.94,0.0001499,2]
[341893457,1731271854399,-500.0,0.0001499,2]
[341893458,1731271854408,-503.13,0.0001499,2]
[341893459,1731271854418,-2053.94,0.0001499,2]
[341893460,1731271854427,-500.0,0.0001499,2]
[341893461,1731271854436,-503.13,0.0001499,2]
[341893462,1731271854445,-2053.94,0.0001499,2]
[341893463,1731271854454,-500.0,0.0001499,2]
[341893464,1731271854463,-503.13,0.0001499,2]
[341893465,1731271854472,-2053.94,0.0001499,2]
[341893466,1731271854482,-500.0,0.0001499,2]
[341893467,1731271854491,-500.0,0.0001499,2]
[341893468,1731271854500,-503.13,0.0001499,2]
[341893469,1731271854510,-2053.94,0.0001499,2]
[341893470,1731271854522,-500.0,0.0001499,2]
[341893471,1731271854532,-503.13,0.0001499,2]
[341893472,1731271854542,-2053.94,0.0001499,2]
[341893473,1731271854551,-500.0,0.0001499,2]
[341893474,1731271854561,-503.13,0.0001499,2]
[341893475,1731271854570,-2053.94,0.0001499,2]
[341893476,1731271854580,-500.0,0.0001499,2]
[341893477,1731271854589,-687.12210448,0.0001499,2]
[341893478,1731271854604,-1366.81789552,0.0001499,2]
[341893479,1731271854614,-499.4613628,0.0001499,2]
[341893480,1731271854633,-995.99,0.00014989,2]
[341893481,1731271854642,-0.5386372,0.0001499,2]
[341893482,1731271854653,-263.36634278,0.0001499,2]
[341893483,1731271854664,-1655.10497002,0.0001499,2]
[341893484,1731271883108,3037.5,0.00012101,2]
[341893505,1731272044018,304.36014975,0.00038315,30]
[341893509,1731272216526,157.37,0.00010874,2]
[341893510,1731272323323,1675.32,0.00011625,2]
[341893525,1731272656609,3000.0,0.00038282,120]
[341893527,1731272713959,1316.93,0.00014688,7]
[341893543,1731272851146,-602.16753536,0.0001302,2]
[341893544,1731272851167,-200.0,0.00013086,2]
[341893545,1731272851188,-326.57,0.0001312,2]
[341893546,1731272851208,-172.8,0.00013122,2]
[341893547,1731272851229,-250.0,0.00013122,2]
[341893548,1731272851249,-300.0,0.00013139,2]
[341893549,1731272851269,-150.0,0.0001314,2]
[341893550,1731272851289,-1705.58553107,0.0001314,2]
[341893578,1731273032042,-2041.47312994,0.00013045,2]
[341893579,1731273032159,-2839.23662743,0.00013045,2]
[341893580,1731273032168,-150.0,0.0001314,2]
[341893581,1731273032182,-300.0,0.0001314,2]
[341893582,1731273032192,-150.0,0.0001314,2]
[341893583,1731273032203,-401.14,0.00013141,2]
[341893584,1731273032213,-250.0,0.00013141,2]
[341893585,1731273032223,-1110.39337257,0.00013141,2]
[341893587,1731273035656,-3768.11,0.00013141,2]
[341893588,1731273035719,-1575.8454,0.00013141,2]
[341893589,1731273035732,-2034.11953564,0.00013141,2]
[341893590,1731273035745,-22056.10051179,0.00013141,2]
[341893591,1731273035779,-3276.57023394,0.00013141,2]
[341893592,1731273035789,-16920.51501625,0.00013141,2]
[341893621,1731273038099,-320.0501162,0.00013141,2]
[341893623,1731273038159,-622.53999997,0.00013141,2]
[341893624,1731273038272,-407.5487451,0.00013141,2]
[341893625,1731273038284,-312.5,0.00013141,2]
[341893626,1731273038442,-4206.45274991,0.00013141,2]
[341893627,1731273038451,-388.64,0.00013145,3]
[341893628,1731273038461,-1060.17,0.00013162,2]
[341893629,1731273038470,-201.96,0.00013181,2]
[341893630,1731273038479,-1000.0,0.0001319,2]
[341893631,1731273038488,-15535.41,0.00013296,2]
[341893632,1731273038497,-161.76,0.00013527,2]
[341893633,1731273038507,-161.76,0.00013544,2]
[341893634,1731273038517,-161.76,0.00013561,2]
[341893635,1731273038526,-626.0,0.00013567,2]
[341893636,1731273038535,-161.76,0.00013578,2]
[341893637,1731273038544,-161.76,0.00013595,2]
[341893638,1731273038554,-566.76,0.00013604,2]
[341893639,1731273038563,-161.76,0.00013612,2]
[341893640,1731273038572,-161.76,0.00013629,2]
[341893641,1731273038581,-161.76,0.00013645,2]
[341893642,1731273038591,-161.76,0.00013662,2]
[341893643,1731273038599,-200.0,0.00013699,2]
[341893644,1731273038609,-795.3,0.00013699,2]
[341893645,1731273038618,-1208.84631517,0.000137,2]
[341893646,1731273038627,-155.626,0.0001373,2]
[341893647,1731273038637,-493.29,0.00013743,2]
[341893648,1731273038649,-603.36283071,0.00013758,2]
[341893649,1731273038660,-326.57,0.00013776,2]
[341893650,1731273038669,-1675.32,0.00013889,2]
[341893651,1731273038681,-1000.0,0.000139,5]
[341893652,1731273038690,-2000.0,0.00014,5]
[341893653,1731273038699,-3000.0,0.000141,5]
[341893654,1731273038708,-150.94,0.00014178,2]